[Event "Titled Tuesday Blitz March 15 Early 2022"]
[White "Borodavkin, Anatoly"]
[Black "Flis, Pawel"]
[WhiteFideId "14150662"]
[BlackFideId "1112864"]
[WhiteElo "1845"]
[BlackElo "1735"]
[Result "1/2-1/2"]
[Round "07"]
[TimeControl "180+1"]
[Date "2022.03.15"]
[WhiteClock "0:00:13"]
[BlackClock "0:00:02"]

1. e4 {[%clk 0:03:00]}  c5 {[%clk 0:02:58]} 2. Nc3 {[%clk 0:03:00]}  Nc6 {[%clk 0:02:57]} 3. g3 {[%clk 0:03:01]}  g6 {[%clk 0:02:56]} 4. Bg2 {[%clk 0:03:02]}  Bg7 {[%clk 0:02:57]} 5. d3 {[%clk 0:03:02]}  e6 {[%clk 0:02:56]} 6. Be3 {[%clk 0:03:00]}  Nd4 {[%clk 0:02:56]} 7. f4 {[%clk 0:02:58]}  Ne7 {[%clk 0:02:55]} 8. e5 {[%clk 0:02:46]}  Nef5 {[%clk 0:02:54]} 9. Bf2 {[%clk 0:02:46]}  O-O {[%clk 0:02:48]} 10. Ne4 {[%clk 0:02:33]}  d5 {[%clk 0:02:00]} 11. exd6 {[%clk 0:02:30]}  Nxd6 {[%clk 0:01:58]} 12. c3 {[%clk 0:02:30]}  Nxe4 {[%clk 0:01:56]} 13. dxe4 {[%clk 0:02:12]}  Qa5 {[%clk 0:01:46]} 14. Qd2 {[%clk 0:02:00]}  Nc6 {[%clk 0:01:44]} 15. Ne2 {[%clk 0:01:55]}  Rd8 {[%clk 0:01:43]} 16. Qc2 {[%clk 0:01:54]}  b6 {[%clk 0:01:36]} 17. e5 {[%clk 0:01:50]}  Bb7 {[%clk 0:01:33]} 18. O-O {[%clk 0:01:47]}  Rab8 {[%clk 0:01:29]} 19. a3 {[%clk 0:01:28]}  Qa6 {[%clk 0:01:26]} 20. Rfd1 {[%clk 0:01:20]}  Ne7 {[%clk 0:01:24]} 21. Bf1 {[%clk 0:01:12]}  Bf3 {[%clk 0:01:01]} 22. Rxd8+ {[%clk 0:01:03]}  Rxd8 {[%clk 0:01:00]} 23. Nd4 {[%clk 0:01:01]}  Qb7 {[%clk 0:00:56]} 24. Nxf3 {[%clk 0:01:00]}  Qxf3 {[%clk 0:00:57]} 25. Bg2 {[%clk 0:01:00]}  Qd3 {[%clk 0:00:55]} 26. Qxd3 {[%clk 0:00:56]}  Rxd3 {[%clk 0:00:56]} 27. Kf1 {[%clk 0:00:51]}  f6 {[%clk 0:00:44]} 28. exf6 {[%clk 0:00:48]}  Bxf6 {[%clk 0:00:43]} 29. Ke1 {[%clk 0:00:46]}  Kf7 {[%clk 0:00:37]} 30. Rd1 {[%clk 0:00:43]}  Rxd1+ {[%clk 0:00:36]} 31. Kxd1 {[%clk 0:00:44]}  Nd5 {[%clk 0:00:30]} 32. Ke2 {[%clk 0:00:43]}  g5 {[%clk 0:00:29]} 33. fxg5 {[%clk 0:00:42]}  Bxg5 {[%clk 0:00:28]} 34. Kd3 {[%clk 0:00:40]}  Bc1 {[%clk 0:00:28]} 35. Kc2 {[%clk 0:00:38]}  Be3 {[%clk 0:00:26]} 36. Be1 {[%clk 0:00:36]}  Bg1 {[%clk 0:00:25]} 37. Bxd5 {[%clk 0:00:25]}  exd5 {[%clk 0:00:26]} 38. h4 {[%clk 0:00:24]}  h5 {[%clk 0:00:24]} 39. Kd3 {[%clk 0:00:23]}  Ke6 {[%clk 0:00:20]} 40. Ke2 {[%clk 0:00:23]}  d4 {[%clk 0:00:19]} 41. Kd3 {[%clk 0:00:20]}  Kf5 {[%clk 0:00:17]} 42. b4 {[%clk 0:00:18]}  dxc3 {[%clk 0:00:15]} 43. Kxc3 {[%clk 0:00:17]}  Bd4+ {[%clk 0:00:14]} 44. Kd3 {[%clk 0:00:16]}  Bb2 {[%clk 0:00:12]} 45. a4 {[%clk 0:00:16]}  cxb4 {[%clk 0:00:11]} 46. Bxb4 {[%clk 0:00:15]}  Kg4 {[%clk 0:00:11]} 47. Bd6 {[%clk 0:00:15]}  Bc1 {[%clk 0:00:08]} 48. Kc4 {[%clk 0:00:15]}  a6 {[%clk 0:00:07]} 49. Kd5 {[%clk 0:00:15]}  Be3 {[%clk 0:00:06]} 50. Kc6 {[%clk 0:00:14]}  b5 {[%clk 0:00:06]} 51. axb5 {[%clk 0:00:14]}  axb5 {[%clk 0:00:05]} 52. Kxb5 {[%clk 0:00:14]}  Bf2 {[%clk 0:00:05]} 53. Kc4 {[%clk 0:00:14]}  Bxg3 {[%clk 0:00:05]} 54. Bc5 {[%clk 0:00:13]}  Bxh4 {[%clk 0:00:05]} 55. Kd3 {[%clk 0:00:14]}  Kf3 {[%clk 0:00:02]} 56. Kd2 {[%clk 0:00:13]} 1/2-1/2


[Site "https://www.chess.com"]

[Event "Titled Tuesday Blitz March 15 Early 2022"]
[White "Bortnyk, Olexandr"]
[Black "Deac, Bogdan-Daniel"]
[WhiteFideId "14120828"]
[BlackFideId "1226380"]
[WhiteElo "2723"]
[BlackElo "2646"]
[Result "1-0"]
[Round "07"]
[TimeControl "180+1"]
[Date "2022.03.15"]
[WhiteClock "0:00:18"]
[BlackClock "0:00:05"]

1. e4 {[%clk 0:03:00]}  e5 {[%clk 0:02:59]} 2. Bc4 {[%clk 0:02:56]}  Nf6 {[%clk 0:02:58]} 3. d3 {[%clk 0:02:57]}  Nc6 {[%clk 0:02:57]} 4. Nc3 {[%clk 0:02:57]}  Bb4 {[%clk 0:02:57]} 5. Bd2 {[%clk 0:02:57]}  Bxc3 {[%clk 0:02:44]} 6. Bxc3 {[%clk 0:02:57]}  d5 {[%clk 0:02:44]} 7. exd5 {[%clk 0:02:56]}  Nxd5 {[%clk 0:02:45]} 8. Qf3 {[%clk 0:02:48]}  Be6 {[%clk 0:02:42]} 9. Ne2 {[%clk 0:02:48]}  O-O {[%clk 0:02:39]} 10. Bxd5 {[%clk 0:02:04]}  Bxd5 {[%clk 0:02:16]} 11. Qg3 {[%clk 0:02:04]}  f6 {[%clk 0:02:07]} 12. a3 {[%clk 0:02:00]}  a5 {[%clk 0:01:59]} 13. O-O {[%clk 0:01:55]}  Qd6 {[%clk 0:01:59]} 14. Rad1 {[%clk 0:01:44]}  Rae8 {[%clk 0:01:56]} 15. d4 {[%clk 0:01:41]}  e4 {[%clk 0:01:37]} 16. Qxd6 {[%clk 0:01:42]}  cxd6 {[%clk 0:01:33]} 17. Nf4 {[%clk 0:01:38]}  Bf7 {[%clk 0:00:25]} 18. d5 {[%clk 0:01:37]}  Ne7 {[%clk 0:00:24]} 19. Bxa5 {[%clk 0:01:29]}  Rc8 {[%clk 0:00:24]} 20. Bb4 {[%clk 0:01:24]}  Rfd8 {[%clk 0:00:24]} 21. c3 {[%clk 0:01:20]}  Ng6 {[%clk 0:00:20]} 22. Ne6 {[%clk 0:01:17]}  Rd7 {[%clk 0:00:20]} 23. Rfe1 {[%clk 0:01:14]}  f5 {[%clk 0:00:20]} 24. Nd4 {[%clk 0:01:12]}  Ne7 {[%clk 0:00:18]} 25. Nb5 {[%clk 0:01:13]}  Rcd8 {[%clk 0:00:18]} 26. c4 {[%clk 0:01:13]}  Ng6 {[%clk 0:00:16]} 27. Bc3 {[%clk 0:01:09]}  Nf4 {[%clk 0:00:14]} 28. b3 {[%clk 0:00:57]}  Nd3 {[%clk 0:00:12]} 29. Re3 {[%clk 0:00:58]}  Bg6 {[%clk 0:00:11]} 30. g3 {[%clk 0:00:47]}  f4 {[%clk 0:00:09]} 31. gxf4 {[%clk 0:00:48]}  Nxf4 {[%clk 0:00:10]} 32. Nd4 {[%clk 0:00:44]}  Re8 {[%clk 0:00:09]} 33. Bb4 {[%clk 0:00:44]}  Re5 {[%clk 0:00:08]} 34. Rg3 {[%clk 0:00:41]}  Nd3 {[%clk 0:00:05]} 35. Bc3 {[%clk 0:00:38]}  Rf7 {[%clk 0:00:03]} 36. Rd2 {[%clk 0:00:35]}  Re8 {[%clk 0:00:03]} 37. Ne6 {[%clk 0:00:35]}  Nf4 {[%clk 0:00:03]} 38. Ng5 {[%clk 0:00:20]}  Rfe7 {[%clk 0:00:03]} 39. h4 {[%clk 0:00:21]}  e3 {[%clk 0:00:03]} 40. fxe3 {[%clk 0:00:22]}  Rxe3 {[%clk 0:00:03]} 41. Rxe3 {[%clk 0:00:20]}  Rxe3 {[%clk 0:00:04]} 42. Bb4 {[%clk 0:00:21]}  Rxb3 {[%clk 0:00:04]} 43. Bxd6 {[%clk 0:00:21]}  Nd3 {[%clk 0:00:03]} 44. Kh2 {[%clk 0:00:17]}  h6 {[%clk 0:00:04]} 45. Ne6 {[%clk 0:00:17]}  Bf5 {[%clk 0:00:04]} 46. Nd4 {[%clk 0:00:17]}  Rb2 {[%clk 0:00:03]} 47. Rxb2 {[%clk 0:00:17]}  Nxb2 {[%clk 0:00:04]} 48. Nxf5 {[%clk 0:00:17]}  Nxc4 {[%clk 0:00:05]} 49. Bc5 {[%clk 0:00:17]}  Kf7 {[%clk 0:00:05]} 50. Nd6+ {[%clk 0:00:17]}  Nxd6 {[%clk 0:00:05]} 51. Bxd6 {[%clk 0:00:18]} 1-0


[Site "https://www.chess.com"]

[Event "Titled Tuesday Blitz March 15 Early 2022"]
[White "Budrewicz, Krzysztof"]
[Black "Koridze, Lile"]
[WhiteFideId "1127950"]
[BlackFideId "13612514"]
[WhiteElo "2248"]
[BlackElo "1999"]
[Result "0-1"]
[Round "07"]
[TimeControl "180+1"]
[Date "2022.03.15"]
[WhiteClock "0:02:12"]
[BlackClock "0:02:12"]

1. d4 {[%clk 0:02:54]}  Nf6 {[%clk 0:02:59]} 2. c4 {[%clk 0:02:53]}  e6 {[%clk 0:02:59]} 3. Nf3 {[%clk 0:02:46]}  d5 {[%clk 0:02:58]} 4. Nc3 {[%clk 0:02:45]}  Bb4 {[%clk 0:02:57]} 5. Qa4+ {[%clk 0:02:44]}  Nc6 {[%clk 0:02:56]} 6. e3 {[%clk 0:02:45]}  O-O {[%clk 0:02:56]} 7. Qc2 {[%clk 0:02:44]}  dxc4 {[%clk 0:02:53]} 8. Bxc4 {[%clk 0:02:43]}  Qe7 {[%clk 0:02:51]} 9. O-O {[%clk 0:02:43]}  e5 {[%clk 0:02:52]} 10. dxe5 {[%clk 0:02:43]}  Nxe5 {[%clk 0:02:52]} 11. Nxe5 {[%clk 0:02:44]}  Qxe5 {[%clk 0:02:53]} 12. f4 {[%clk 0:02:45]}  Qe7 {[%clk 0:02:52]} 13. a3 {[%clk 0:02:37]}  Bc5 {[%clk 0:02:53]} 14. Re1 {[%clk 0:02:37]}  Bg4 {[%clk 0:02:44]} 15. Kh1 {[%clk 0:02:36]}  Nh5 {[%clk 0:02:28]} 16. Ne4 {[%clk 0:02:25]}  Bb6 {[%clk 0:02:14]} 17. Nf2 {[%clk 0:02:19]}  Qh4 {[%clk 0:02:12]} 18. Nxg4 {[%clk 0:02:15]}  Qxe1+ {[%clk 0:02:12]} 19. Bf1 {[%clk 0:02:12]}  Qxf1# {[%clk 0:02:12]} 0-1


[Site "https://www.chess.com"]

[Event "Titled Tuesday Blitz March 15 Early 2022"]
[White "Chernomordik, Pavel"]
[Black "volunteers1998"]
[WhiteFideId "2804530"]
[WhiteElo "2249"]
[BlackElo "2270"]
[Result "1-0"]
[Round "07"]
[TimeControl "180+1"]
[Date "2022.03.15"]
[WhiteClock "0:00:07"]
[BlackClock "0:00:02"]

1. e4 {[%clk 0:03:00]}  c5 {[%clk 0:02:58]} 2. Nc3 {[%clk 0:03:00]}  Nc6 {[%clk 0:02:57]} 3. Bb5 {[%clk 0:02:59]}  d6 {[%clk 0:02:55]} 4. f4 {[%clk 0:02:58]}  Bd7 {[%clk 0:02:53]} 5. Nf3 {[%clk 0:02:57]}  g6 {[%clk 0:02:51]} 6. O-O {[%clk 0:02:56]}  Bg7 {[%clk 0:02:49]} 7. d3 {[%clk 0:02:56]}  Nf6 {[%clk 0:02:47]} 8. Qe1 {[%clk 0:02:54]}  O-O {[%clk 0:02:41]} 9. Bxc6 {[%clk 0:02:53]}  Bxc6 {[%clk 0:02:39]} 10. Qh4 {[%clk 0:02:53]}  b5 {[%clk 0:02:33]} 11. f5 {[%clk 0:02:52]}  b4 {[%clk 0:02:31]} 12. Ne2 {[%clk 0:02:52]}  a5 {[%clk 0:02:22]} 13. Bh6 {[%clk 0:02:51]}  Re8 {[%clk 0:02:18]} 14. Ng5 {[%clk 0:02:47]}  Bh8 {[%clk 0:01:57]} 15. Nf4 {[%clk 0:02:42]}  a4 {[%clk 0:01:49]} 16. Qg3 {[%clk 0:02:36]}  Qd7 {[%clk 0:01:41]} 17. Nxf7 {[%clk 0:02:28]}  a3 {[%clk 0:01:35]} 18. bxa3 {[%clk 0:02:16]}  Rxa3 {[%clk 0:01:29]} 19. fxg6 {[%clk 0:02:15]}  Qg4 {[%clk 0:01:26]} 20. Qe3 {[%clk 0:01:53]}  Nxe4 {[%clk 0:01:10]} 21. Nxh8 {[%clk 0:01:50]}  Kxh8 {[%clk 0:01:00]} 22. h3 {[%clk 0:01:39]}  Qg3 {[%clk 0:00:57]} 23. Rf3 {[%clk 0:01:38]}  Qh4 {[%clk 0:00:47]} 24. g7+ {[%clk 0:01:37]}  Kg8 {[%clk 0:00:47]} 25. Ne6 {[%clk 0:01:21]}  Nf6 {[%clk 0:00:44]} 26. Bg5 {[%clk 0:01:20]}  Qh5 {[%clk 0:00:40]} 27. Rg3 {[%clk 0:01:08]}  Qf7 {[%clk 0:00:38]} 28. Rf1 {[%clk 0:01:05]}  Rxa2 {[%clk 0:00:35]} 29. Qf4 {[%clk 0:00:46]}  Qxe6 {[%clk 0:00:32]} 30. Re3 {[%clk 0:00:31]}  Qd5 {[%clk 0:00:25]} 31. Rf2 {[%clk 0:00:31]}  Ra1+ {[%clk 0:00:19]} 32. Kh2 {[%clk 0:00:30]}  Ra2 {[%clk 0:00:12]} 33. Bxf6 {[%clk 0:00:21]}  Qh5 {[%clk 0:00:08]} 34. Bb2 {[%clk 0:00:14]}  Raa8 {[%clk 0:00:04]} 35. Re6 {[%clk 0:00:08]}  Bd5 {[%clk 0:00:02]} 36. Rh6 {[%clk 0:00:07]} 1-0


[Site "https://www.chess.com"]

[Event "Titled Tuesday Blitz March 15 Early 2022"]
[White "Christensen, Thomas"]
[Black "Omariev, Maksim"]
[WhiteFideId "1403532"]
[BlackFideId "4193423"]
[WhiteElo "2276"]
[BlackElo "2457"]
[Result "0-1"]
[Round "07"]
[TimeControl "180+1"]
[Date "2022.03.15"]
[WhiteClock "0:00:15"]
[BlackClock "0:00:32"]

1. d4 {[%clk 0:03:00]}  h5 {[%clk 0:03:00]} 2. e4 {[%clk 0:03:00]}  h4 {[%clk 0:03:01]} 3. h3 {[%clk 0:02:59]}  c6 {[%clk 0:02:58]} 4. d5 {[%clk 0:02:58]}  Nf6 {[%clk 0:02:56]} 5. dxc6 {[%clk 0:02:49]}  Nxc6 {[%clk 0:02:54]} 6. Bd3 {[%clk 0:02:49]}  d5 {[%clk 0:02:48]} 7. exd5 {[%clk 0:02:49]}  Nxd5 {[%clk 0:02:49]} 8. Nc3 {[%clk 0:02:49]}  Nxc3 {[%clk 0:02:48]} 9. bxc3 {[%clk 0:02:49]}  e5 {[%clk 0:02:48]} 10. Nf3 {[%clk 0:02:44]}  Be6 {[%clk 0:02:42]} 11. O-O {[%clk 0:02:44]}  Be7 {[%clk 0:02:29]} 12. Re1 {[%clk 0:02:43]}  Qa5 {[%clk 0:02:26]} 13. c4 {[%clk 0:02:33]}  O-O-O {[%clk 0:02:24]} 14. Qe2 {[%clk 0:02:33]}  f6 {[%clk 0:02:20]} 15. Bd2 {[%clk 0:02:19]}  Qc7 {[%clk 0:02:16]} 16. a4 {[%clk 0:02:08]}  g5 {[%clk 0:02:11]} 17. a5 {[%clk 0:02:03]}  g4 {[%clk 0:02:09]} 18. hxg4 {[%clk 0:01:56]}  Bxg4 {[%clk 0:02:10]} 19. Qe3 {[%clk 0:01:52]}  Rdg8 {[%clk 0:01:56]} 20. Be4 {[%clk 0:01:43]}  Bh3 {[%clk 0:00:59]} 21. Nh2 {[%clk 0:01:22]}  Bxg2 {[%clk 0:00:55]} 22. Bxg2 {[%clk 0:01:18]}  h3 {[%clk 0:00:55]} 23. Kh1 {[%clk 0:00:56]}  hxg2+ {[%clk 0:00:49]} 24. Kg1 {[%clk 0:00:56]}  Nd4 {[%clk 0:00:47]} 25. c3 {[%clk 0:00:38]}  e4 {[%clk 0:00:36]} 26. Qf4 {[%clk 0:00:34]}  Bd6 {[%clk 0:00:36]} 27. Rxe4 {[%clk 0:00:15]}  Bxf4 {[%clk 0:00:32]} 0-1


[Site "https://www.chess.com"]

[Event "Titled Tuesday Blitz March 15 Early 2022"]
[White "Csonka, Balazs"]
[Black "Foisor, Sabina-Francesca"]
[WhiteFideId "742910"]
[BlackFideId "1212915"]
[WhiteElo "2404"]
[BlackElo "2243"]
[Result "1-0"]
[Round "07"]
[TimeControl "180+1"]
[Date "2022.03.15"]
[WhiteClock "0:00:23"]
[BlackClock "0:00:16"]

1. e4 {[%clk 0:02:40]}  c6 {[%clk 0:02:59]} 2. d4 {[%clk 0:02:38]}  g6 {[%clk 0:02:59]} 3. Nf3 {[%clk 0:02:35]}  d5 {[%clk 0:02:59]} 4. Nbd2 {[%clk 0:02:35]}  Bg7 {[%clk 0:02:59]} 5. c3 {[%clk 0:02:34]}  dxe4 {[%clk 0:02:49]} 6. Nxe4 {[%clk 0:02:35]}  Nf6 {[%clk 0:02:49]} 7. Nxf6+ {[%clk 0:02:35]}  exf6 {[%clk 0:02:50]} 8. Bc4 {[%clk 0:02:35]}  O-O {[%clk 0:02:50]} 9. O-O {[%clk 0:02:36]}  Nd7 {[%clk 0:02:48]} 10. Re1 {[%clk 0:02:34]}  Nb6 {[%clk 0:02:49]} 11. Bb3 {[%clk 0:02:34]}  a5 {[%clk 0:02:44]} 12. a4 {[%clk 0:02:34]}  Qd6 {[%clk 0:02:41]} 13. Nd2 {[%clk 0:02:31]}  f5 {[%clk 0:02:36]} 14. Nc4 {[%clk 0:02:31]}  Nxc4 {[%clk 0:02:26]} 15. Bxc4 {[%clk 0:02:32]}  c5 {[%clk 0:02:23]} 16. dxc5 {[%clk 0:02:17]}  Qxc5 {[%clk 0:02:22]} 17. Qb3 {[%clk 0:02:12]}  Bd7 {[%clk 0:01:53]} 18. Be3 {[%clk 0:02:05]}  Qc8 {[%clk 0:01:48]} 19. Rad1 {[%clk 0:01:44]}  Bc6 {[%clk 0:01:47]} 20. Bd5 {[%clk 0:01:33]}  Ra6 {[%clk 0:01:20]} 21. h3 {[%clk 0:01:17]}  Bxd5 {[%clk 0:01:15]} 22. Rxd5 {[%clk 0:01:03]}  h5 {[%clk 0:01:05]} 23. Red1 {[%clk 0:00:42]}  Kh7 {[%clk 0:00:36]} 24. Rd7 {[%clk 0:00:38]}  Re6 {[%clk 0:00:22]} 25. Qxb7 {[%clk 0:00:35]}  Qc4 {[%clk 0:00:18]} 26. Rxf7 {[%clk 0:00:25]}  Rxf7 {[%clk 0:00:18]} 27. Qxf7 {[%clk 0:00:26]}  Qc6 {[%clk 0:00:16]} 28. Rd7 {[%clk 0:00:23]} 1-0


[Site "https://www.chess.com"]

[Event "Titled Tuesday Blitz March 15 Early 2022"]
[White "De Souza, Cristiano Gomes"]
[Black "Tsatsalashvili, Keti"]
[WhiteFideId "2151758"]
[BlackFideId "13603434"]
[WhiteElo "2068"]
[BlackElo "2246"]
[Result "1/2-1/2"]
[Round "07"]
[TimeControl "180+1"]
[Date "2022.03.15"]
[WhiteClock "0:00:36"]
[BlackClock "0:00:12"]

1. d4 {[%clk 0:02:59]}  Nf6 {[%clk 0:02:59]} 2. c4 {[%clk 0:02:59]}  e6 {[%clk 0:02:59]} 3. Nf3 {[%clk 0:02:59]}  d5 {[%clk 0:02:59]} 4. Nc3 {[%clk 0:02:59]}  Bb4 {[%clk 0:02:55]} 5. Bg5 {[%clk 0:02:58]}  O-O {[%clk 0:02:54]} 6. Rc1 {[%clk 0:02:57]}  h6 {[%clk 0:02:48]} 7. Bxf6 {[%clk 0:02:57]}  Qxf6 {[%clk 0:02:49]} 8. e3 {[%clk 0:02:58]}  c6 {[%clk 0:02:40]} 9. Be2 {[%clk 0:02:56]}  Nd7 {[%clk 0:02:38]} 10. O-O {[%clk 0:02:56]}  Qe7 {[%clk 0:02:38]} 11. a3 {[%clk 0:02:53]}  Bd6 {[%clk 0:02:38]} 12. e4 {[%clk 0:02:52]}  dxe4 {[%clk 0:02:38]} 13. Nxe4 {[%clk 0:02:52]}  Bc7 {[%clk 0:02:38]} 14. b4 {[%clk 0:02:51]}  Nf6 {[%clk 0:02:38]} 15. Bd3 {[%clk 0:02:50]}  Nxe4 {[%clk 0:02:33]} 16. Bxe4 {[%clk 0:02:49]}  a5 {[%clk 0:02:24]} 17. Qb3 {[%clk 0:02:42]}  f5 {[%clk 0:01:55]} 18. Bb1 {[%clk 0:02:40]}  Bd7 {[%clk 0:01:51]} 19. Rfe1 {[%clk 0:02:38]}  Bd6 {[%clk 0:01:36]} 20. c5 {[%clk 0:02:30]}  Bf4 {[%clk 0:01:26]} 21. Rc2 {[%clk 0:02:25]}  axb4 {[%clk 0:01:22]} 22. axb4 {[%clk 0:02:23]}  Ra1 {[%clk 0:01:04]} 23. Rce2 {[%clk 0:02:20]}  Qf7 {[%clk 0:01:01]} 24. Ba2 {[%clk 0:02:15]}  Rxe1+ {[%clk 0:01:00]} 25. Rxe1 {[%clk 0:02:14]}  g5 {[%clk 0:00:58]} 26. g3 {[%clk 0:02:01]}  Bc7 {[%clk 0:00:57]} 27. Qd3 {[%clk 0:01:53]}  Ra8 {[%clk 0:00:54]} 28. Bc4 {[%clk 0:01:49]}  Kg7 {[%clk 0:00:52]} 29. Qb3 {[%clk 0:01:46]}  Re8 {[%clk 0:00:47]} 30. Ne5 {[%clk 0:01:46]}  Bxe5 {[%clk 0:00:47]} 31. Rxe5 {[%clk 0:01:46]}  f4 {[%clk 0:00:47]} 32. g4 {[%clk 0:01:34]}  f3 {[%clk 0:00:45]} 33. Qe3 {[%clk 0:01:30]}  Ra8 {[%clk 0:00:41]} 34. h3 {[%clk 0:01:29]}  Ra1+ {[%clk 0:00:40]} 35. Kh2 {[%clk 0:01:28]}  Ra4 {[%clk 0:00:34]} 36. Bxe6 {[%clk 0:01:25]}  Bxe6 {[%clk 0:00:33]} 37. Rxe6 {[%clk 0:01:25]}  Kf8 {[%clk 0:00:31]} 38. Kg3 {[%clk 0:01:14]}  Rxb4 {[%clk 0:00:31]} 39. Qe5 {[%clk 0:01:12]}  Qf4+ {[%clk 0:00:30]} 40. Qxf4+ {[%clk 0:01:09]}  gxf4+ {[%clk 0:00:31]} 41. Kxf4 {[%clk 0:01:09]}  Rxd4+ {[%clk 0:00:32]} 42. Kxf3 {[%clk 0:01:10]}  Rd5 {[%clk 0:00:32]} 43. Rxh6 {[%clk 0:01:09]}  Kg7 {[%clk 0:00:32]} 44. Rd6 {[%clk 0:01:07]}  Rxc5 {[%clk 0:00:32]} 45. Rd7+ {[%clk 0:01:07]}  Kf6 {[%clk 0:00:31]} 46. Rxb7 {[%clk 0:01:07]}  Rc3+ {[%clk 0:00:31]} 47. Kg2 {[%clk 0:01:07]}  c5 {[%clk 0:00:30]} 48. h4 {[%clk 0:01:05]}  c4 {[%clk 0:00:28]} 49. f3 {[%clk 0:01:05]}  Rc1 {[%clk 0:00:29]} 50. Kg3 {[%clk 0:01:04]}  c3 {[%clk 0:00:29]} 51. Rc7 {[%clk 0:01:03]}  c2 {[%clk 0:00:29]} 52. Kf4 {[%clk 0:01:03]}  Kg6 {[%clk 0:00:28]} 53. h5+ {[%clk 0:01:03]}  Kh6 {[%clk 0:00:29]} 54. Rc6+ {[%clk 0:01:00]}  Kg7 {[%clk 0:00:28]} 55. Kg5 {[%clk 0:01:00]}  Kh7 {[%clk 0:00:26]} 56. f4 {[%clk 0:01:00]}  Kg7 {[%clk 0:00:26]} 57. f5 {[%clk 0:01:00]}  Kf7 {[%clk 0:00:26]} 58. h6 {[%clk 0:01:00]}  Kf8 {[%clk 0:00:21]} 59. h7 {[%clk 0:00:57]}  Kg7 {[%clk 0:00:17]} 60. Rc7+ {[%clk 0:00:57]}  Kh8 {[%clk 0:00:16]} 61. Kf6 {[%clk 0:00:54]}  Rg1 {[%clk 0:00:14]} 62. Rxc2 {[%clk 0:00:47]}  Rxg4 {[%clk 0:00:14]} 63. Rc7 {[%clk 0:00:46]}  Rg6+ {[%clk 0:00:12]} 64. Ke5 {[%clk 0:00:41]}  Re6+ {[%clk 0:00:12]} 65. Kf4 {[%clk 0:00:39]}  Re4+ {[%clk 0:00:12]} 66. Kf3 {[%clk 0:00:38]}  Rf4+ {[%clk 0:00:12]} 67. Kxf4 {[%clk 0:00:36]} 1/2-1/2


[Site "https://www.chess.com"]

[Event "Titled Tuesday Blitz March 15 Early 2022"]
[White "Devaev, Alexander"]
[Black "Odegov, Artem"]
[WhiteFideId "4169395"]
[BlackFideId "34183644"]
[WhiteElo "2185"]
[BlackElo "2286"]
[Result "0-1"]
[Round "07"]
[TimeControl "180+1"]
[Date "2022.03.15"]
[WhiteClock "0:00:02"]
[BlackClock "0:01:58"]

1. d4 {[%clk 0:02:42]}  Nf6 {[%clk 0:02:59]} 2. c4 {[%clk 0:02:42]}  c5 {[%clk 0:02:59]} 3. d5 {[%clk 0:02:42]}  b5 {[%clk 0:03:00]} 4. cxb5 {[%clk 0:02:42]}  a6 {[%clk 0:03:00]} 5. b6 {[%clk 0:02:43]}  e6 {[%clk 0:03:00]} 6. Nc3 {[%clk 0:02:44]}  exd5 {[%clk 0:03:00]} 7. Nxd5 {[%clk 0:02:44]}  Nxd5 {[%clk 0:02:59]} 8. Qxd5 {[%clk 0:02:45]}  Nc6 {[%clk 0:03:00]} 9. Nf3 {[%clk 0:02:24]}  Be7 {[%clk 0:02:59]} 10. a4 {[%clk 0:01:39]}  Qxb6 {[%clk 0:02:57]} 11. a5 {[%clk 0:01:40]}  Qb4+ {[%clk 0:02:53]} 12. Qd2 {[%clk 0:01:29]}  O-O {[%clk 0:02:51]} 13. e3 {[%clk 0:01:28]}  Rb8 {[%clk 0:02:33]} 14. Bd3 {[%clk 0:01:27]}  c4 {[%clk 0:02:25]} 15. Bc2 {[%clk 0:01:02]}  Bf6 {[%clk 0:02:24]} 16. O-O {[%clk 0:01:00]}  Qxd2 {[%clk 0:02:20]} 17. Nxd2 {[%clk 0:00:59]}  Bxb2 {[%clk 0:02:19]} 18. Rb1 {[%clk 0:00:44]}  c3 {[%clk 0:02:18]} 19. Ne4 {[%clk 0:00:36]}  d5 {[%clk 0:02:09]} 20. Nc5 {[%clk 0:00:20]}  Nxa5 {[%clk 0:02:08]} 21. Nd3 {[%clk 0:00:14]}  Bf5 {[%clk 0:02:06]} 22. Rd1 {[%clk 0:00:04]}  Nc4 {[%clk 0:02:01]} 23. h3 {[%clk 0:00:03]}  a5 {[%clk 0:02:00]} 24. g4 {[%clk 0:00:03]}  Bg6 {[%clk 0:01:58]} 25. Ne1 {[%clk 0:00:03]}  Na3 {[%clk 0:01:59]} 26. Bxg6 {[%clk 0:00:02]}  hxg6 {[%clk 0:01:58]} 0-1


[Site "https://www.chess.com"]